bitfinex-derivatives/quotes_SOLF0:USTF0_20241229
["timestamp","ask_amount","ask_price","bid_price","bid_amount"]
[1735509195189,57.50157499,190.7,190.63,3.44]
[1735509195385,2.6268,190.68,190.64,3.44]
[1735509195587,57.50157499,190.7,190.65,3.44]
[1735509195894,13.23268174,190.74,190.65,3.44]
[1735509196092,3.44,190.78,190.65,3.44]
[1735509196394,13.23268174,190.72,190.65,3.44]
[1735509196786,13.23268174,190.69,190.65,3.44]
[1735509196988,2.6267,190.68,190.63,2.6274]
[1735509197694,13.23268174,190.72,190.62,3.44]
[1735509198086,2.6265,190.71,190.65,2.627]
[1735509198284,13.23268174,190.72,190.65,2.627]
[1735509198689,13.23268174,190.68,190.62,3.44]
[1735509199596,2.6274,190.64,190.62,3.44]
[1735509200888,13.23268174,190.68,190.59,4.1125]
[1735509201095,13.23268174,190.65,190.58,3.44]
[1735509201393,1.5553,190.67,190.58,3.44]
[1735509201394,4.6115,190.67,190.58,3.44]
[1735509203597,1.5553,190.67,190.58,3.44]
[1735509203797,13.23268174,190.71,190.59,13.23268174]
[1735509204096,13.23268174,190.74,190.64,2.6272]
[1735509204395,13.23268174,190.74,190.65,3.46]
[1735509205497,2.6269,190.68,190.65,3.46]
[1735509206387,2.6269,190.67,190.65,3.46]
[1735509206991,2.6268,190.68,190.65,3.46]
[1735509207393,13.23268174,190.71,190.61,2.6276]
[1735509207598,13.23268174,190.67,190.61,3.46]
[1735509207798,1.5251,190.66,190.54,13.23268174]
[1735509207999,1.5251,190.66,190.58,3.46]
[1735509208297,2.6277,190.62,190.58,3.46]
[1735509208700,1.5251,190.66,190.58,3.46]
[1735509208902,1.5251,190.66,190.59,2.628]
[1735509209102,1.5251,190.66,190.58,3.46]
[1735509209502,2.6273,190.65,190.58,3.46]
[1735509209700,1.5251,190.66,190.58,3.46]
[1735509209906,2.6276,190.62,190.59,3.46]
[1735509210901,17.38488174,190.66,190.61,2.6277]
[1735509211106,1.5251,190.66,190.59,3.46]
[1735509212511,2.6275,190.63,190.59,6.088]
[1735509213513,2.6273,190.64,190.59,6.088]
[1735509213910,2.6273,190.64,190.6,2.6278]
[1735509214306,1.5251,190.66,190.59,3.46]
[1735509214516,1.5251,190.66,190.55,13.23268174]
[1735509214517,13.23268174,190.64,190.55,3.46]
[1735509214808,2.6282,190.58,190.54,3.46]
[1735509215411,2.6284,190.57,190.54,3.46]
[1735509215810,2.6284,190.57,190.5,56.64953597]
[1735509216011,2.6284,190.57,190.51,3.46]
[1735509216315,15.86048174,190.61,190.55,2.6284]
[1735509216515,3.0531,190.63,190.56,3.46]
[1735509216715,13.23268174,190.61,190.56,3.46]
[1735509217415,2.6281,190.59,190.56,3.46]
[1735509217913,13.23268174,190.61,190.56,3.46]
[1735509218111,3.0531,190.63,190.56,3.46]
[1735509218412,3.0531,190.63,190.55,6.0885]
[1735509218822,2.628,190.59,190.55,3.46]
[1735509219111,13.23268174,190.61,190.55,3.46]
[1735509220420,2.6282,190.58,190.55,3.46]
[1735509220619,13.23268174,190.61,190.55,3.46]
[1735509220819,13.23268174,190.61,190.5,2.00953597]
[1735509220820,13.23268174,190.61,190.52,3.46]
[1735509221119,2.6283,190.57,190.52,3.46]
[1735509223822,2.6281,190.58,190.52,3.46]
[1735509224019,13.23268174,190.61,190.52,3.46]
[1735509224325,3.0531,190.63,190.56,2.6284]
[1735509225218,2.6278,190.6,190.56,2.6284]
[1735509225620,2.6278,190.6,190.52,3.46]
[1735509225621,2.6278,190.6,190.55,2.6285]
[1735509226629,2.628,190.59,190.55,2.6285]
[1735509227026,2.628,190.59,190.54,2.6286]
[1735509228530,2.6283,190.57,190.52,6.0888]
[1735509228829,13.23268174,190.61,190.53,3.46]
[1735509229227,13.23268174,190.61,190.53,6.0888]
[1735509230432,2.6283,190.57,190.53,6.0888]
[1735509232031,2.6284,190.56,190.53,3.46]
[1735509234030,2.6284,190.56,190.53,6.0888]
[1735509234827,2.6284,190.56,190.53,3.46]
[1735509235129,2.6285,190.55,190.53,3.46]
[1735509235327,13.23268174,190.61,190.53,3.46]
[1735509235932,3.0531,190.63,190.53,3.46]
[1735509236329,13.23268174,190.61,190.53,3.46]
[1735509236735,2.6282,190.58,190.55,2.6285]
[1735509239432,2.6282,190.58,190.53,3.46]
[1735509239641,2.6282,190.58,190.54,2.6286]
[1735509241139,2.6282,190.58,190.55,3.5]
[1735509242442,11.10482768,190.58,190.55,3.5]
[1735509243235,2.6282,190.58,190.55,3.5]
[1735509243845,1.5251,190.66,190.57,8.47662768]
[1735509244149,8.47662768,190.64,190.57,8.47662768]
[1735509244449,10.00172768,190.66,190.59,8.47662768]
[1735509244642,10.00172768,190.66,190.6,3.5]
[1735509244643,8.47662768,190.66,190.6,3.5]
[1735509245544,21.43512931,190.73,190.65,8.47662768]
[1735509245747,29.91175699,190.73,190.67,8.47662768]
[1735509245944,21.43512931,190.73,190.69,11.10312768]
[1735509246147,11.10252768,190.75,190.69,11.10312768]
[1735509246548,8.47662768,190.75,190.69,8.47662768]
[1735509246752,8.47662768,190.75,190.68,8.47662768]
[1735509247151,11.10252768,190.75,190.69,2.6265]
[1735509247450,21.43512931,190.76,190.7,8.47662768]
[1735509247648,8.47662768,190.75,190.71,3.5]
[1735509247843,8.47662768,190.75,190.72,3.5]
[1735509248244,2.6256,190.76,190.72,3.5]
[1735509250449,2.6256,190.76,190.72,6.1262]
[1735509250851,2.6256,190.76,190.72,3.5]
[1735509251055,4.1547,190.77,190.72,6.1262]
[1735509251255,13.22301764,190.78,190.72,3.5]
[1735509252556,15.84841764,190.78,190.73,2.626]
[1735509253346,13.22301764,190.78,190.72,3.5]
[1735509253547,2.6255,190.77,190.72,6.1262]
[1735509253953,13.22301764,190.78,190.72,3.5]
[1735509254160,2.6257,190.76,190.72,3.5]
[1735509255755,2.6257,190.76,190.73,3.5]
[1735509257354,16.31371764,190.81,190.73,3.5]
[1735509259959,2.6256,190.77,190.73,3.5]
[1735509260557,2.6256,190.77,190.73,6.126]
[1735509260760,2.6252,190.79,190.73,3.5]
[1735509260958,13.22301764,190.84,190.73,3.5]
[1735509261157,16.34301764,190.84,190.73,3.5]
[1735509261561,2.6253,190.79,190.75,2.6257]
[1735509263359,16.34301764,190.84,190.73,3.5]
[1735509263662,3.12,190.84,190.73,3.5]
[1735509263866,2.6247,190.83,190.78,2.6252]
[1735509264160,2.6247,190.83,190.79,3.38]
[1735509264361,2.6245,190.84,190.8,2.6251]
[1735509265266,2.6245,190.84,190.79,3.38]
[1735509265267,4.0905,190.85,190.81,2.6249]
[1735509265467,4.0905,190.85,190.79,3.38]
[1735509265468,16.28731764,190.9,190.79,3.38]
[1735509265869,2.624,190.88,190.83,2.6245]
[1735509266061,2.624,190.88,190.84,3.38]
[1735509266560,16.28731764,190.9,190.84,3.38]
[1735509266561,3.0643,190.9,190.84,3.38]
[1735509266762,2.6239,190.89,190.84,3.38]
[1735509266961,14.80031764,190.93,190.84,3.38]
[1735509267567,2.6238,190.9,190.86,2.6242]
[1735509267963,2.6238,190.9,190.84,3.38]
[1735509268159,2.6238,190.9,190.85,2.6244]
[1735509268867,14.80031764,190.93,190.81,13.22301764]
[1735509269172,13.22301764,190.9,190.79,3.0852]
[1735509269465,13.22301764,190.84,190.76,3.38]
[1735509269664,13.22301764,190.84,190.7,1.5143]
[1735509269665,13.22301764,190.84,190.72,3.38]
[1735509269870,2.6254,190.78,190.72,3.38]
[1735509270569,13.22301764,190.78,190.69,1.4874]
[1735509270868,13.22301764,190.78,190.7,3.38]
[1735509271670,13.22301764,190.81,190.7,3.38]
[1735509274274,2.6258,190.75,190.7,3.38]
[1735509274875,13.22301764,190.81,190.7,6.0065]
[1735509275172,13.22301764,190.81,190.71,3.38]
[1735509275173,2.626,190.74,190.71,3.38]
[1735509278873,13.22301764,190.72,190.56,3.38]
[1735509279172,13.22301764,190.68,190.57,3.1521]
[1735509279366,2.6275,190.63,190.57,3.1521]
[1735509279770,13.22301764,190.68,190.57,3.1521]
[1735509279966,2.6273,190.64,190.57,3.1521]
[1735509280765,13.22301764,190.71,190.61,2.6276]
[1735509280963,13.22301764,190.71,190.61,6.0076]
[1735509281370,13.22301764,190.71,190.61,3.38]
[1735509281575,2.6272,190.65,190.61,3.38]
[1735509281979,13.22301764,190.71,190.61,3.38]
[1735509282176,2.6275,190.63,190.61,3.38]
[1735509283374,13.22301764,190.68,190.61,3.38]
[1735509283573,2.6272,190.65,190.61,3.38]
[1735509284773,2.627,190.66,190.61,3.38]
[1735509285077,13.22301764,190.71,190.61,6.0076]
[1735509285581,2.6271,190.66,190.61,6.0076]
[1735509285875,13.22301764,190.71,190.61,3.38]
[1735509286069,3.1254,190.72,190.64,2.6273]
[1735509286070,1.5229,190.72,190.64,2.6273]
[1735509286274,1.5229,190.72,190.61,16.60301764]
[1735509286579,2.6265,190.7,190.65,2.6271]
[1735509288680,1.5229,190.72,190.65,2.6271]
[1735509288681,2.6266,190.69,190.65,2.6271]
[1735509289581,2.627,190.67,190.62,2.6274]
[1735509289779,13.22301764,190.71,190.61,3.38]
[1735509291680,2.6272,190.65,190.61,3.38]
[1735509292379,2.6274,190.64,190.61,3.38]
[1735509292682,13.22301764,190.68,190.54,13.22301764]
[1735509292877,13.22301764,190.68,190.55,3.38]
[1735509293078,2.6278,190.6,190.55,3.38]
[1735509293585,2.6278,190.6,190.54,13.22301764]
[1735509293788,2.6278,190.6,190.55,3.32]
[1735509294284,13.22301764,190.65,190.55,3.32]
[1735509294478,2.6277,190.61,190.56,2.6283]
[1735509294675,2.6277,190.61,190.56,5.9483]
[1735509294879,13.22301764,190.65,190.56,3.32]
[1735509295074,2.6276,190.62,190.58,2.6281]
[1735509295879,13.22301764,190.68,190.56,3.32]
[1735509296086,2.6274,190.64,190.59,2.628]
[1735509297284,2.6275,190.63,190.59,2.628]
[1735509301788,13.22301764,190.71,190.62,2.6274]
[1735509301986,13.22301764,190.71,190.62,5.9474]
[1735509302185,13.22301764,190.71,190.62,3.32]
[1735509303092,2.6266,190.69,190.65,2.6271]
[1735509303287,1.5229,190.72,190.62,3.32]
[1735509303687,2.6268,190.68,190.64,2.6273]
[1735509304088,2.6266,190.7,190.66,2.627]
[1735509304289,2.6266,190.7,190.63,13.22301764]
[1735509304496,13.22301764,190.74,190.63,13.22301764]
[1735509304890,13.22301764,190.71,190.62,3.32]
[1735509305191,13.22301764,190.71,190.5,2.00953597]
[1735509305192,13.22301764,190.68,190.58,13.22301764]
[1735509305397,13.22301764,190.68,190.55,13.22301764]
[1735509305596,1.5923,190.67,190.56,3.32]
[1735509305798,13.22301764,190.65,190.56,3.32]
[1735509306193,13.22301764,190.62,190.54,3.32]
[1735509306393,2.6282,190.58,190.54,3.32]
[1735509306787,2.6282,190.58,190.53,4.1549]
[1735509306990,1.5923,190.67,190.55,13.22301764]
[1735509307502,2.6275,190.63,190.57,2.6281]
[1735509307800,2.6275,190.63,190.55,13.22301764]
[1735509308095,1.5923,190.67,190.55,13.22301764]
[1735509308293,2.6273,190.65,190.55,13.22301764]
[1735509308493,1.5923,190.67,190.59,2.6279]
[1735509308694,2.6272,190.65,190.6,3.32]
[1735509309299,70.72459263,190.74,190.61,13.22301764]
[1735509309702,70.72459263,190.74,190.61,16.41881764]
[1735509310202,41.78639052,190.74,190.61,16.41881764]
[1735509311105,2.6266,190.69,190.64,2.6273]
[1735509311297,2.6266,190.69,190.65,3.32]
[1735509311504,13.22301764,190.71,190.65,3.32]
[1735509311807,13.22301764,190.74,190.65,3.32]
[1735509312107,13.22301764,190.71,190.65,3.32]
[1735509313104,2.6274,190.64,190.61,3.32]
[1735509313902,7.12824357,190.71,190.61,3.32]
[1735509314111,7.12824357,190.71,190.63,13.22301764]
[1735509314913,2.6263,190.71,190.63,13.22301764]
[1735509315602,2.6263,190.71,190.66,2.6269]
[1735509315803,2.6263,190.71,190.67,3.32]
[1735509316208,1.5028,190.74,190.67,3.32]
[1735509316520,28.56337288,190.75,190.67,3.32]
[1735509316912,7.12824357,190.75,190.67,3.32]
[1735509317313,2.626,190.74,190.69,2.6266]
[1735509317512,7.12824357,190.75,190.69,2.6266]
[1735509317709,7.12824357,190.75,190.67,3.32]
[1735509317910,2.6261,190.73,190.68,2.6267]
[1735509318611,2.6258,190.76,190.69,13.22301764]
[1735509318805,20.4437417,190.77,190.69,13.22301764]
[1735509319012,28.56337288,190.79,190.7,4.6954]
[1735509319217,31.18867288,190.79,190.73,2.6259]
[1735509319414,31.18867288,190.79,190.74,3.32]
[1735509319718,31.18867288,190.79,190.74,5.9459]
[1735509319916,2.6253,190.79,190.74,5.9459]
[1735509320114,2.6255,190.77,190.74,3.32]
[1735509320416,13.22301764,190.8,190.74,3.32]
[1735509320812,2.6255,190.77,190.74,3.32]
[1735509321316,13.22301764,190.8,190.74,3.32]
[1735509321509,41.78639052,190.83,190.74,3.32]
[1735509321913,13.22301764,190.83,190.74,3.32]
[1735509322309,2.6251,190.81,190.75,2.6256]
[1735509322615,13.22301764,190.83,190.7,4.6954]
[1735509322815,13.22301764,190.83,190.71,3.32]
[1735509326417,2.6251,190.81,190.72,13.22301764]
[1735509326918,2.6255,190.78,190.73,2.626]
[1735509327717,13.22301764,190.8,190.74,3.32]
[1735509328617,2.6256,190.77,190.74,3.32]
[1735509329519,2.6253,190.79,190.74,3.32]
[1735509330219,13.22301764,190.83,190.75,2.6257]
[1735509330516,13.22301764,190.83,190.74,3.32]
[1735509330721,2.6251,190.81,190.74,3.32]
[1735509330916,13.22301764,190.83,190.74,3.32]
[1735509331813,23.44226121,190.86,190.74,3.32]
[1735509332218,2.6247,190.83,190.79,2.6252]
[1735509332417,2.6247,190.83,190.8,3.32]
[1735509334218,2.6247,190.83,190.8,5.9451]
[1735509336632,13.22301764,190.89,190.78,13.22301764]
[1735509336830,13.22301764,190.89,190.79,3.32]
[1735509337129,13.22301764,190.86,190.8,3.32]
[1735509337325,13.22301764,190.86,190.79,3.32]
[1735509337731,2.6248,190.82,190.79,3.32]
[1735509340231,2.6247,190.84,190.79,3.32]
[1735509342927,2.6252,190.8,190.75,2.6257]
[1735509343132,13.22301764,190.8,190.75,3.32]
[1735509343930,2.6255,190.78,190.75,3.32]
[1735509344229,13.22301764,190.8,190.75,3.32]
[1735509344428,2.6253,190.79,190.75,3.32]
[1735509344733,13.22301764,190.8,190.75,3.32]
[1735509345228,2.6255,190.78,190.75,3.32]
[1735509345429,13.22301764,190.83,190.75,3.32]
[1735509346830,2.6253,190.79,190.76,2.6255]
[1735509347030,2.6253,190.79,190.75,3.32]
[1735509347232,13.22301764,190.83,190.7,4.6954]
[1735509347430,13.22301764,190.83,190.71,3.32]
[1735509347626,2.6252,190.8,190.74,2.6259]
[1735509347829,13.22301764,190.83,190.74,2.6259]
[1735509348126,13.22301764,190.83,190.71,3.32]
[1735509348334,2.6253,190.79,190.75,2.6257]
[1735509349026,2.6254,190.78,190.75,2.6257]
[1735509350032,2.6254,190.78,190.74,2.626]
[1735509353039,13.22301764,190.82,190.74,2.626]
[1735509353246,2.6257,190.77,190.74,2.626]
[1735509353841,2.6261,190.75,190.71,2.6264]
[1735509354041,13.22301764,190.82,190.69,3.32]
[1735509354042,13.22301764,190.76,190.69,3.32]
[1735509355143,13.22301764,190.76,190.69,5.9467]
[1735509355144,2.6263,190.73,190.69,5.9467]
[1735509355942,2.6264,190.72,190.69,5.9467]
[1735509358340,2.626,190.75,190.72,2.6263]
[1735509359035,2.626,190.75,190.69,3.32]
[1735509359344,41.78639052,190.79,190.69,16.54301764]
[1735509359345,2.6257,190.77,190.69,16.54301764]
[1735509359743,2.6257,190.77,190.73,2.6261]
[1735509360139,2.6257,190.77,190.71,2.6265]
[1735509360339,2.6257,190.77,190.74,3.26]
[1735509360541,2.6256,190.78,190.74,3.26]
[1735509360751,28.56337288,190.81,190.74,5.886]
[1735509360943,7.12824357,190.81,190.74,3.26]
[1735509361143,2.6254,190.79,190.74,3.26]
[1735509361548,2.6253,190.8,190.76,2.6257]
[1735509361747,28.56337288,190.82,190.74,3.26]
[1735509361948,13.22301764,190.82,190.74,3.26]
[1735509362149,2.6257,190.77,190.74,5.8861]
[1735509362838,13.22301764,190.82,190.74,5.8861]
[1735509363044,13.22301764,190.82,190.74,3.26]
[1735509363340,13.22301764,190.82,190.75,2.6259]
[1735509363545,2.6253,190.8,190.74,3.26]
[1735509365347,10.21064357,190.84,190.76,2.6257]
[1735509365558,2.6251,190.82,190.74,3.26]
[1735509365755,7.12824357,190.84,190.74,3.26]
[1735509366149,2.625,190.82,190.74,3.26]
[1735509366555,2.625,190.82,190.76,2.6258]
[1735509366755,2.625,190.82,190.74,3.26]
[1735509367758,20.35126121,190.85,190.74,3.26]
[1735509367759,2.6252,190.81,190.74,3.26]
[1735509368056,2.6252,190.81,190.76,2.6257]
[1735509368458,20.35126121,190.85,190.74,3.26]
[1735509368658,41.78639052,190.85,190.74,3.26]
[1735509369457,2.6252,190.81,190.77,2.6257]
[1735509370352,41.78639052,190.85,190.74,3.26]
[1735509370557,2.625,190.82,190.78,2.6255]
[1735509371555,2.6249,190.83,190.79,2.6253]
[1735509371855,2.6249,190.83,190.79,5.8853]
[1735509373560,2.625,190.82,190.79,5.8853]
[1735509375361,13.22301764,190.85,190.8,2.6251]
[1735509375658,20.35126121,190.85,190.8,2.6251]
[1735509376257,15.58387873,190.85,190.8,2.6251]
[1735509376457,15.58387873,190.85,190.82,2.6249]
[1735509376658,15.58387873,190.85,190.79,3.26]
[1735509377156,8.45563516,190.85,190.79,3.26]
[1735509377360,31.18787288,190.86,190.8,8.45563516]
[1735509377857,28.56337288,190.86,190.8,8.45563516]
[1735509378062,28.56337288,190.86,190.84,2.6247]
[1735509378255,28.56337288,190.89,190.84,5.8847]
[1735509378660,2.6242,190.88,190.85,2.6246]
[1735509379062,2.6242,190.88,190.84,3.26]
[1735509379261,2.6246,190.85,190.84,3.26]
[1735509379462,13.2067499,190.88,190.8,3.26]
[1735509379858,2.625,190.82,190.8,3.26]
[1735509380166,13.2067499,190.88,190.8,3.26]
[1735509380559,2.6245,190.86,190.8,5.8852]
[1735509380858,28.56337288,190.87,190.8,5.8852]
[1735509381362,2.6248,190.84,190.8,5.8852]
[1735509381559,2.6248,190.84,190.81,2.6251]
[1735509381764,7.12824357,190.86,190.81,2.6251]
[1735509382264,2.6247,190.85,190.81,2.6251]
[1735509382566,7.12824357,190.86,190.73,3.2167]
[1735509382753,2.6251,190.82,190.74,3.26]
[1735509382952,7.12824357,190.86,190.75,13.2067499]
[1735509383153,9.75274357,190.86,190.82,2.6249]
[1735509383360,7.12824357,190.86,190.81,3.26]
[1735509383960,7.12824357,190.86,190.83,2.6248]
[1735509384162,7.12824357,190.86,190.81,3.26]
[1735509384754,28.56337288,190.88,190.81,3.26]
[1735509385263,2.6245,190.86,190.82,2.6249]
[1735509386565,2.6246,190.85,190.82,2.6249]
[1735509386766,13.2067499,190.87,190.73,3.2167]
[1735509386969,13.2067499,190.87,190.74,3.2]
[1735509387268,13.2067499,190.87,190.77,2.6257]
[1735509387668,13.2067499,190.84,190.73,3.2167]
[1735509387868,13.2067499,190.84,190.75,2.6258]
[1735509388266,2.6254,190.79,190.75,2.6258]
[1735509388864,2.6255,190.78,190.75,2.6258]
[1735509389065,13.2067499,190.84,190.76,2.6257]
[1735509389473,13.2067499,190.84,190.73,3.2167]
[1735509389474,2.6256,190.78,190.73,3.2167]
[1735509389662,13.2067499,190.81,190.75,3.2]
[1735509389864,13.2067499,190.81,190.74,2.6261]
[1735509390068,13.2067499,190.81,190.74,5.8261]
[1735509390268,2.6256,190.78,190.74,5.8261]
[1735509392086,2.6257,190.77,190.73,4.2346]
[1735509392384,2.6257,190.77,190.73,5.8262]
[1735509393876,13.2067499,190.78,190.66,13.2067499]
[1735509394081,13.2067499,190.78,190.67,3.2]
[1735509394389,2.6259,190.76,190.7,2.6266]
[1735509394583,13.2067499,190.78,190.67,3.2]
[1735509394779,13.2067499,190.78,190.68,1.5858]
[1735509394984,2.6257,190.77,190.73,2.6261]
[1735509395184,28.56337288,190.79,190.73,3.2]
[1735509395779,41.87057165,190.8,190.73,3.2]
[1735509396588,7.12824357,190.81,190.73,3.2]
[1735509396988,7.12824357,190.81,190.73,16.4067499]
[1735509397392,7.12824357,190.81,190.74,1.5923]
[1735509397594,7.12824357,190.81,190.74,3.2217]
[1735509398196,7.12824357,190.83,190.74,3.2217]
[1735509398785,7.12824357,190.83,190.75,1.5735]
[1735509399287,2.6248,190.84,190.75,1.5735]
[1735509399487,28.56337288,190.85,190.76,13.2067499]
[1735509399689,28.56337288,190.85,190.83,2.6248]
[1735509399888,28.56337288,190.85,190.83,3.2]
[1735509400490,41.88372755,190.87,190.83,3.2]
[1735509400692,41.88372755,190.87,190.84,2.6247]
[1735509401590,60.12577499,190.88,190.84,2.6247]
[1735509401591,9.75244357,190.88,190.84,2.6247]
[1735509401892,7.12824357,190.88,190.83,3.2]
[1735509402588,7.12824357,190.89,190.83,3.2]
[1735509403592,7.12824357,190.89,190.85,2.6245]
[1735509403789,2.6239,190.9,190.85,2.6245]
[1735509408596,2.6243,190.88,190.84,2.6247]
[1735509408795,13.20618644,190.89,190.81,3.2]
[1735509409697,7.12824357,190.91,190.81,3.2]
[1735509410196,28.56337288,190.91,190.81,3.2]
[1735509410394,28.56337288,190.91,190.84,2.6246]
[1735509410395,2.6242,190.88,190.84,2.6246]
[1735509412400,2.6242,190.88,190.85,2.6246]
[1735509412595,28.56337288,190.9,190.85,2.6246]
[1735509413198,72.38309837,190.91,190.85,2.6246]
[1735509413199,2.6242,190.89,190.85,2.6246]
[1735509413603,7.12824357,190.91,190.85,2.6246]
[1735509414301,28.56337288,190.91,190.85,2.6246]
[1735509414500,2.6242,190.88,190.85,2.6246]
[1735509414700,2.6242,190.88,190.84,2.6247]
[1735509415903,2.6242,190.88,190.81,3.2]
[1735509415904,41.88274786,190.91,190.85,2.6246]
[1735509416107,2.624,190.89,190.85,2.6246]
[1735509416500,2.624,190.89,190.86,2.6244]
[1735509416701,2.624,190.89,190.81,3.2]
[1735509417201,2.624,190.89,190.85,2.6246]
[1735509417901,7.12824357,190.91,190.85,2.6246]
[1735509418107,2.6242,190.88,190.85,2.6246]
[1735509418607,2.6239,190.9,190.84,2.6247]
[1735509418807,9.75214357,190.9,190.81,3.2]
[1735509419208,9.75214357,190.9,190.86,2.6243]
[1735509419398,9.75214357,190.9,190.86,5.8043]
[1735509419902,2.6239,190.9,190.86,5.8043]
[1735509420799,34.64131575,190.92,190.86,5.8043]
[1735509420800,31.18707288,190.92,190.89,2.624]
[1735509421816,28.56337288,190.92,190.89,2.624]
[1735509422112,28.56337288,190.92,190.86,3.18]
[1735509422113,28.56337288,190.94,190.86,3.18]
[1735509422305,28.56337288,190.94,190.88,8.44711369]
[1735509423507,2.6234,190.94,190.9,2.6238]
[1735509423811,15.57535726,190.95,190.9,2.6238]
[1735509424008,8.44711369,190.93,190.9,2.6238]
[1735509424204,18.19865726,190.95,190.91,2.6236]
[1735509425604,11.07041369,190.95,190.91,2.6236]
[1735509425808,11.07041369,190.95,190.91,5.8036]
[1735509426007,8.44711369,190.95,190.92,2.6236]
[1735509426205,9.75134357,190.96,190.92,2.6236]
[1735509426405,9.75134357,190.96,190.91,3.18]
[1735509426406,7.12824357,190.96,190.91,3.18]
[1735509426711,7.12824357,190.96,190.95,2.6232]
[1735509426911,37.01048657,190.98,190.95,2.6232]
[1735509427108,39.63328657,190.98,190.95,2.6232]
[1735509427303,28.56337288,190.98,190.95,2.6232]
[1735509427914,28.56337288,190.98,190.97,2.6229]
[1735509428115,67.0,191.0,190.97,2.6229]
[1735509428413,2.6227,190.99,190.96,3.18]
[1735509428608,67.0,191.0,190.96,11.62711369]
[1735509430408,67.0,191.0,190.95,2.6231]
[1735509430409,78.06981369,191.0,190.95,2.6231]
[1735509430614,8.44711369,190.96,190.92,1.5245]
[1735509430815,8.44711369,190.96,190.91,3.18]
[1735509431011,8.44711369,190.96,190.92,3.18]
[1735509431211,8.44711369,190.96,190.92,5.8036]
[1735509431410,2.6231,190.97,190.92,5.8036]
[1735509431613,11.07021369,190.97,190.92,5.8036]
[1735509432512,2.6231,190.97,190.93,2.6234]
[1735509434514,2.6228,190.98,190.94,2.6233]
[1735509435915,67.0,191.0,190.92,11.62711369]
[1735509435916,67.0,191.0,190.97,2.6229]
[1735509436419,67.0,191.0,190.97,5.8029]
[1735509437213,67.0,191.0,190.97,3.18]
[1735509438322,67.0,191.0,190.98,2.6227]
[1735509442018,67.0,191.0,190.97,3.18]
[1735509442217,67.0,191.0,190.99,2.6227]
[1735509455527,28.56337288,191.08,191.06,2.6217]
[1735509455731,7.12824357,191.07,191.06,3.16]
[1735509457135,2.6214,191.09,191.06,3.16]
[1735509457531,2.6216,191.07,191.06,3.16]
[1735509459935,8.44711369,191.08,191.0,8.44711369]
[1735509460132,7.12824357,191.1,191.02,8.44711369]
[1735509460436,7.12824357,191.1,191.04,8.44711369]
[1735509460732,2.6215,191.09,191.05,2.6218]
[1735509461135,2.6215,191.09,191.04,8.44711369]
[1735509461136,28.56337288,191.1,191.04,8.44711369]
[1735509461333,31.18457288,191.1,191.04,8.44711369]
[1735509461535,7.12824357,191.09,191.04,8.44711369]
[1735509462138,31.18457288,191.1,191.04,8.44711369]
[1735509462533,31.18457288,191.1,191.05,2.6218]
[1735509462737,2.6212,191.1,191.04,8.44711369]
[1735509463134,2.6212,191.1,191.06,2.6217]
[1735509463335,28.56337288,191.11,191.06,8.44711369]
[1735509463635,31.18447288,191.11,191.06,8.44711369]
[1735509463831,7.12824357,191.11,191.08,2.6214]
[1735509464031,7.12824357,191.11,191.08,5.7814]
[1735509465241,2.6212,191.1,191.08,3.16]
[1735509466435,8.44711369,191.11,191.04,8.44711369]
[1735509466642,8.44711369,191.07,191.04,3.16]
[1735509467246,2.6215,191.08,191.04,3.16]
[1735509467450,8.44711369,191.09,191.04,3.16]